[Event "Early-Titled-Tuesday-Blitz-August-29-2023"]
[Site "Chess.com"]
[Date "2023.08.29"]
[Round "10"]
[White "ViktoriyaTarasova"]
[Black "bazar-wokzal"]
[Result "0-1"]
[WhiteElo "2428"]
[BlackElo "2602"]
[TimeControl "180+1"]
[EndTime "9:54:18 PDT"]
[Termination "bazar-wokzal won on time"]

1. d4 {[%clk 0:02:56.5]} 1... Nf6 {[%clk 0:02:59.2]} 2. c4 {[%clk 0:02:56.2]}
2... Nc6 {[%clk 0:02:59.1]} 3. d5 {[%clk 0:02:54.5]} 3... Ne5 {[%clk 0:02:58.6]}
4. Qd4 {[%clk 0:02:54.2]} 4... Ng6 {[%clk 0:02:57.7]} 5. e4 {[%clk 0:02:54]}
5... e5 {[%clk 0:02:57.2]} 6. Qd3 {[%clk 0:02:50.5]} 6... Bc5 {[%clk 0:02:56.7]}
7. h3 {[%clk 0:02:36.9]} 7... O-O {[%clk 0:02:56.2]} 8. Be2 {[%clk 0:02:33.2]}
8... d6 {[%clk 0:02:55.5]} 9. Nf3 {[%clk 0:02:31.1]} 9... c6 {[%clk 0:02:55.3]}
10. O-O {[%clk 0:02:29.2]} 10... cxd5 {[%clk 0:02:54.7]} 11. cxd5 {[%clk
0:02:29]} 11... Nh5 {[%clk 0:02:53.3]} 12. Nc3 {[%clk 0:02:15.9]} 12... f5
{[%clk 0:02:44]} 13. Bg5 {[%clk 0:01:47.4]} 13... Qe8 {[%clk 0:02:29.6]} 14.
exf5 {[%clk 0:01:46.4]} 14... Bxf5 {[%clk 0:02:28.5]} 15. Ne4 {[%clk 0:01:47.1]}
15... Ng3 {[%clk 0:02:22.4]} 16. Nfd2 {[%clk 0:01:25.2]} 16... Nxf1 {[%clk
0:02:20.6]} 17. Rxf1 {[%clk 0:01:24.8]} 17... h6 {[%clk 0:02:16.1]} 18. Be3
{[%clk 0:01:21]} 18... Nf4 {[%clk 0:02:14.8]} 19. Bxf4 {[%clk 0:01:16.1]} 19...
exf4 {[%clk 0:02:14.8]} 20. Bf3 {[%clk 0:01:16.6]} 20... Qg6 {[%clk 0:02:11.3]}
21. Kh2 {[%clk 0:01:14.9]} 21... Rae8 {[%clk 0:02:07.8]} 22. Qc4 {[%clk
0:01:14.6]} 22... Bb6 {[%clk 0:01:59.1]} 23. Qb4 {[%clk 0:01:14.2]} 23... Rd8
{[%clk 0:01:45.7]} 24. a4 {[%clk 0:01:12.7]} 24... Rd7 {[%clk 0:01:25.9]} 25. a5
{[%clk 0:01:07.2]} 25... Bd8 {[%clk 0:01:25.9]} 26. Rc1 {[%clk 0:01:07.3]} 26...
Be7 {[%clk 0:01:22.1]} 27. Qd4 {[%clk 0:00:57]} 27... a6 {[%clk 0:01:18.2]} 28.
Qb4 {[%clk 0:00:56.2]} 28... Qe8 {[%clk 0:01:15.4]} 29. Rc4 {[%clk 0:00:51]}
29... g5 {[%clk 0:01:13.7]} 30. Qb3 {[%clk 0:00:46.9]} 30... h5 {[%clk
0:01:10.2]} 31. Qd1 {[%clk 0:00:46.1]} 31... Bg6 {[%clk 0:01:02.3]} 32. b3
{[%clk 0:00:31.2]} 32... Kh7 {[%clk 0:01:02]} 33. g4 {[%clk 0:00:24.1]} 33...
fxg3+ {[%clk 0:00:59.7]} 34. fxg3 {[%clk 0:00:24.3]} 34... Kh6 {[%clk
0:00:52.9]} 35. Kg2 {[%clk 0:00:23.6]} 35... Bf5 {[%clk 0:00:49.3]} 36. Qe2
{[%clk 0:00:22.6]} 36... Qg6 {[%clk 0:00:47.1]} 37. g4 {[%clk 0:00:21.6]} 37...
hxg4 {[%clk 0:00:44.5]} 38. hxg4 {[%clk 0:00:21.8]} 38... Bxe4 {[%clk
0:00:44.2]} 39. Rxe4 {[%clk 0:00:20.9]} 39... Bf6 {[%clk 0:00:37.6]} 40. Qe1
{[%clk 0:00:20.4]} 40... Be5 {[%clk 0:00:35.1]} 41. Nc4 {[%clk 0:00:18.7]} 41...
Re7 {[%clk 0:00:30.8]} 42. Nxe5 {[%clk 0:00:16.7]} 42... Rxe5 {[%clk 0:00:30.9]}
43. Rxe5 {[%clk 0:00:17.4]} 43... dxe5 {[%clk 0:00:31]} 44. Qxe5 {[%clk
0:00:18]} 44... Qf6 {[%clk 0:00:30.6]} 45. Qe4 {[%clk 0:00:12]} 45... Rf7 {[%clk
0:00:27.7]} 46. b4 {[%clk 0:00:10]} 46... Re7 {[%clk 0:00:26.8]} 47. Qd3 {[%clk
0:00:09.4]} 47... Qb2+ {[%clk 0:00:25.4]} 48. Kg3 {[%clk 0:00:09.9]} 48... Qxb4
{[%clk 0:00:24.6]} 49. d6 {[%clk 0:00:10.6]} 49... Qf4+ {[%clk 0:00:22.8]} 50.
Kg2 {[%clk 0:00:10.7]} 50... Re3 {[%clk 0:00:19.5]} 51. Qd5 {[%clk 0:00:06.9]}
51... Re5 {[%clk 0:00:14.8]} 52. Qg8 {[%clk 0:00:02.9]} 52... Qd2+ {[%clk
0:00:13.5]} 53. Kg3 {[%clk 0:00:02.9]} 53... Qxd6 {[%clk 0:00:12.8]} 54. Qh8+
{[%clk 0:00:02.5]} 54... Kg6 {[%clk 0:00:13.2]} 55. Qg8+ {[%clk 0:00:02.8]}
55... Kf6 {[%clk 0:00:13.6]} 56. Qh8+ {[%clk 0:00:03]} 56... Ke7 {[%clk
0:00:13.7]} 57. Qg7+ {[%clk 0:00:02.9]} 57... Kd8 {[%clk 0:00:13.3]} 58. Qg8+
{[%clk 0:00:02.8]} 58... Re8+ {[%clk 0:00:12.8]} 0-1

[Event "Early-Titled-Tuesday-Blitz-August-29-2023"]
[Site "Chess.com"]
[Date "2023.08.29"]
[Round "10"]
[White "GMKrikor"]
[Black "DanielNaroditsky"]
[Result "1/2-1/2"]
[WhiteElo "2876"]
[BlackElo "3134"]
[TimeControl "180+1"]
[EndTime "9:54:22 PDT"]
[Termination "Game drawn - insufficient material"]

1. Nf3 {[%clk 0:03:00.9]} 1... Nf6 {[%clk 0:03:00]} 2. c4 {[%clk 0:02:59]} 2...
g6 {[%clk 0:03:00.3]} 3. Nc3 {[%clk 0:02:59]} 3... Bg7 {[%clk 0:03:01]} 4. e4
{[%clk 0:02:59.3]} 4... d6 {[%clk 0:03:01.8]} 5. d4 {[%clk 0:02:59.5]} 5... O-O
{[%clk 0:03:02.5]} 6. h3 {[%clk 0:03:00.1]} 6... e5 {[%clk 0:03:02.5]} 7. d5
{[%clk 0:03:00.5]} 7... a5 {[%clk 0:02:57.9]} 8. g4 {[%clk 0:03:00]} 8... Na6
{[%clk 0:02:58.3]} 9. Be3 {[%clk 0:03:00.3]} 9... Nc5 {[%clk 0:02:58.6]} 10. Nd2
{[%clk 0:02:59.8]} 10... c6 {[%clk 0:02:59.1]} 11. Rg1 {[%clk 0:02:57.9]} 11...
a4 {[%clk 0:02:58.6]} 12. Be2 {[%clk 0:02:46.4]} 12... Qa5 {[%clk 0:02:58.5]}
13. Qc2 {[%clk 0:02:34.3]} 13... Bd7 {[%clk 0:02:48.6]} 14. g5 {[%clk
0:02:22.5]} 14... Ne8 {[%clk 0:02:49.1]} 15. h4 {[%clk 0:02:22]} 15... Nc7
{[%clk 0:02:49.2]} 16. h5 {[%clk 0:02:09.8]} 16... cxd5 {[%clk 0:02:49.6]} 17.
cxd5 {[%clk 0:02:06.9]} 17... b5 {[%clk 0:02:49.7]} 18. h6 {[%clk 0:01:56.9]}
18... Bh8 {[%clk 0:02:49.8]} 19. a3 {[%clk 0:01:22.4]} 19... Rfc8 {[%clk
0:02:39.3]} 20. Rg3 {[%clk 0:00:59.5]} 20... N7a6 {[%clk 0:02:36.2]} 21. Kf1
{[%clk 0:00:59.9]} 21... Rc7 {[%clk 0:02:22.1]} 22. Kg1 {[%clk 0:00:58.5]} 22...
Rac8 {[%clk 0:02:22.8]} 23. Rf1 {[%clk 0:00:45.6]} 23... f5 {[%clk 0:02:14.9]}
24. gxf6 {[%clk 0:00:43.3]} 24... Bxf6 {[%clk 0:02:15.2]} 25. Qd1 {[%clk
0:00:40.1]} 25... Rf8 {[%clk 0:02:05.1]} 26. Bg4 {[%clk 0:00:40.1]} 26... Bxg4
{[%clk 0:02:01.6]} 27. Qxg4 {[%clk 0:00:39.7]} 27... Rcf7 {[%clk 0:02:02.5]} 28.
Qe2 {[%clk 0:00:36.5]} 28... Nc7 {[%clk 0:01:54.6]} 29. Bxc5 {[%clk 0:00:33.5]}
29... dxc5 {[%clk 0:01:55.5]} 30. d6 {[%clk 0:00:34.2]} 30... Ne6 {[%clk
0:01:55.6]} 31. Qxb5 {[%clk 0:00:33.1]} 31... Qd8 {[%clk 0:01:55]} 32. Nd5
{[%clk 0:00:25.2]} 32... Bh4 {[%clk 0:01:48.2]} 33. Rg2 {[%clk 0:00:17.5]} 33...
Nd4 {[%clk 0:01:38.9]} 34. Qd3 {[%clk 0:00:17.5]} 34... Qxd6 {[%clk 0:01:36.7]}
35. Qh3 {[%clk 0:00:17.7]} 35... Bf6 {[%clk 0:01:08.2]} 36. Kh1 {[%clk
0:00:17.9]} 36... Qa6 {[%clk 0:01:00.9]} 37. Rfg1 {[%clk 0:00:18.1]} 37... Ne2
{[%clk 0:01:00.3]} 38. Re1 {[%clk 0:00:16]} 38... Nd4 {[%clk 0:00:55.1]} 39.
Reg1 {[%clk 0:00:15.6]} 39... Kh8 {[%clk 0:00:52.8]} 40. Qg4 {[%clk 0:00:07.7]}
40... Qd3 {[%clk 0:00:47.1]} 41. f4 {[%clk 0:00:04.1]} 41... exf4 {[%clk
0:00:40.5]} 42. Nxf4 {[%clk 0:00:05]} 42... Qe3 {[%clk 0:00:41]} 43. Nd5 {[%clk
0:00:03.7]} 43... Qxh6+ {[%clk 0:00:35.3]} 44. Rh2 {[%clk 0:00:04.2]} 44... Qg7
{[%clk 0:00:36.1]} 45. Qxg6 {[%clk 0:00:04.6]} 45... Qxg6 {[%clk 0:00:35.1]} 46.
Rxg6 {[%clk 0:00:05.5]} 46... Be5 {[%clk 0:00:35.2]} 47. Rh5 {[%clk 0:00:05]}
47... Rf2 {[%clk 0:00:31.5]} 48. Rg2 {[%clk 0:00:05.2]} 48... Bb8 {[%clk
0:00:15.7]} 49. Nc4 {[%clk 0:00:04.7]} 49... Ne2 {[%clk 0:00:09.2]} 50. e5
{[%clk 0:00:05.3]} 50... Rf1+ {[%clk 0:00:06.9]} 51. Kh2 {[%clk 0:00:05.9]}
51... Nd4 {[%clk 0:00:07.8]} 52. Rhg5 {[%clk 0:00:02.9]} 52... Nf3+ {[%clk
0:00:07.9]} 53. Kh3 {[%clk 0:00:03.3]} 53... Nxg5+ {[%clk 0:00:08.8]} 54. Rxg5
{[%clk 0:00:03.9]} 54... R1f5 {[%clk 0:00:05.6]} 55. Rxf5 {[%clk 0:00:03.5]}
55... Rxf5 {[%clk 0:00:06.5]} 56. Kg4 {[%clk 0:00:04.4]} 56... Rxe5 {[%clk
0:00:03.9]} 57. Nxe5 {[%clk 0:00:04.6]} 57... Bxe5 {[%clk 0:00:04.8]} 58. Nb6
{[%clk 0:00:05.2]} 58... Bxb2 {[%clk 0:00:04.3]} 59. Nxa4 {[%clk 0:00:02.9]}
59... Bxa3 {[%clk 0:00:04.8]} 60. Nxc5 {[%clk 0:00:03.4]} 60... Bxc5 {[%clk
0:00:05.5]} 61. Kh3 {[%clk 0:00:04.1]} 61... h5 {[%clk 0:00:05.4]} 62. Kg2
{[%clk 0:00:05]} 62... h4 {[%clk 0:00:06.3]} 63. Kh1 {[%clk 0:00:05.7]} 63... h3
{[%clk 0:00:06.8]} 64. Kh2 {[%clk 0:00:06.2]} 64... Bd4 {[%clk 0:00:07]} 65.
Kxh3 {[%clk 0:00:07.1]} 1/2-1/2

[Event "Early-Titled-Tuesday-Blitz-August-29-2023"]
[Site "Chess.com"]
[Date "2023.08.29"]
[Round "10"]
[White "KNVB"]
[Black "angryspacevoid"]
[Result "1-0"]
[WhiteElo "2786"]
[BlackElo "2550"]
[TimeControl "180+1"]
[EndTime "9:54:30 PDT"]
[Termination "KNVB won by checkmate"]

1. d4 {[%clk 0:03:00.9]} 1... d5 {[%clk 0:02:55.8]} 2. Bf4 {[%clk 0:03:00.4]}
2... Nf6 {[%clk 0:02:44]} 3. e3 {[%clk 0:02:59]} 3... c5 {[%clk 0:02:43.3]} 4.
c3 {[%clk 0:02:59.2]} 4... Qb6 {[%clk 0:02:42.5]} 5. Qb3 {[%clk 0:02:59.4]} 5...
Nc6 {[%clk 0:02:39.7]} 6. Nd2 {[%clk 0:02:59.3]} 6... c4 {[%clk 0:02:39.1]} 7.
Qc2 {[%clk 0:02:59.7]} 7... g6 {[%clk 0:02:38.2]} 8. e4 {[%clk 0:03:00]} 8...
Bg7 {[%clk 0:02:34.9]} 9. exd5 {[%clk 0:02:48.1]} 9... Nxd5 {[%clk 0:02:35.8]}
10. Nxc4 {[%clk 0:02:48]} 10... Qd8 {[%clk 0:02:24.3]} 11. Bg3 {[%clk
0:02:47.4]} 11... Bf5 {[%clk 0:02:24.1]} 12. Bd3 {[%clk 0:02:20.6]} 12... Ndb4
{[%clk 0:01:45.3]} 13. cxb4 {[%clk 0:02:18.6]} 13... Nxd4 {[%clk 0:01:42.5]} 14.
Qd1 {[%clk 0:02:08.2]} 14... Rc8 {[%clk 0:01:33]} 15. Rc1 {[%clk 0:00:49.3]}
15... Bxd3 {[%clk 0:01:14.5]} 16. Qxd3 {[%clk 0:00:48]} 16... b5 {[%clk
0:01:14.8]} 17. Ne2 {[%clk 0:00:21.8]} 17... bxc4 {[%clk 0:01:10.1]} 18. Qe4
{[%clk 0:00:10.2]} 18... O-O {[%clk 0:00:45.3]} 19. Nxd4 {[%clk 0:00:02.9]}
19... Bxd4 {[%clk 0:00:39.6]} 20. O-O {[%clk 0:00:03.1]} 20... Bxb2 {[%clk
0:00:35.1]} 21. Rxc4 {[%clk 0:00:02.2]} 21... Rxc4 {[%clk 0:00:35.5]} 22. Qxc4
{[%clk 0:00:03.1]} 22... Qb6 {[%clk 0:00:32.6]} 23. Rb1 {[%clk 0:00:02.6]} 23...
Bf6 {[%clk 0:00:32.2]} 24. a3 {[%clk 0:00:01.7]} 24... Rd8 {[%clk 0:00:32.6]}
25. h3 {[%clk 0:00:02]} 25... Rd2 {[%clk 0:00:30.2]} 26. a4 {[%clk 0:00:02]}
26... a5 {[%clk 0:00:27.4]} 27. b5 {[%clk 0:00:02.1]} 27... h5 {[%clk
0:00:27.5]} 28. Kh1 {[%clk 0:00:02.1]} 28... h4 {[%clk 0:00:27.1]} 29. Bxh4
{[%clk 0:00:02.1]} 29... Bxh4 {[%clk 0:00:18.8]} 30. Qxh4 {[%clk 0:00:02.4]}
30... Rxf2 {[%clk 0:00:19.5]} 31. Re1 {[%clk 0:00:02.2]} 31... Rf6 {[%clk
0:00:12.1]} 32. Rd1 {[%clk 0:00:02.1]} 32... Kg7 {[%clk 0:00:08.3]} 33. Qe4
{[%clk 0:00:02.3]} 33... Re6 {[%clk 0:00:07.7]} 34. Qd4+ {[%clk 0:00:02.4]}
34... Qxd4 {[%clk 0:00:07.7]} 35. Rxd4 {[%clk 0:00:03.3]} 35... Kf6 {[%clk
0:00:07.6]} 36. Kg1 {[%clk 0:00:03.6]} 36... Ke5 {[%clk 0:00:08]} 37. Rd2 {[%clk
0:00:03.6]} 37... Rb6 {[%clk 0:00:06.9]} 38. Kf2 {[%clk 0:00:03.6]} 38... f5
{[%clk 0:00:07.2]} 39. Ke3 {[%clk 0:00:03.7]} 39... Kf6 {[%clk 0:00:07.4]} 40.
h4 {[%clk 0:00:02.8]} 40... e5 {[%clk 0:00:07.6]} 41. g3 {[%clk 0:00:03.1]}
41... Ke6 {[%clk 0:00:07.8]} 42. Rc2 {[%clk 0:00:03.2]} 42... Kd5 {[%clk
0:00:07.6]} 43. Kd3 {[%clk 0:00:04]} 43... e4+ {[%clk 0:00:07.2]} 44. Ke3 {[%clk
0:00:04.5]} 44... Rb7 {[%clk 0:00:05.8]} 45. Rc6 {[%clk 0:00:04.9]} 45... Rg7
{[%clk 0:00:04.1]} 46. Ra6 {[%clk 0:00:03.8]} 46... g5 {[%clk 0:00:04.4]} 47.
hxg5 {[%clk 0:00:02.7]} 47... Rxg5 {[%clk 0:00:05.3]} 48. Kf2 {[%clk 0:00:03.3]}
48... Kd4 {[%clk 0:00:04.7]} 49. Rxa5 {[%clk 0:00:03.7]} 49... e3+ {[%clk
0:00:05.2]} 50. Kf3 {[%clk 0:00:03.9]} 50... Kd3 {[%clk 0:00:05.3]} 51. b6
{[%clk 0:00:04.2]} 51... e2 {[%clk 0:00:04.7]} 52. Rd5+ {[%clk 0:00:04.5]} 52...
Kc4 {[%clk 0:00:04]} 53. Re5 {[%clk 0:00:04.8]} 53... Rg6 {[%clk 0:00:03.6]} 54.
a5 {[%clk 0:00:05.1]} 54... Kb4 {[%clk 0:00:02.9]} 55. Rxe2 {[%clk 0:00:03.3]}
55... Kxa5 {[%clk 0:00:02.4]} 56. Rb2 {[%clk 0:00:04.1]} 56... Rxb6 {[%clk
0:00:01.7]} 57. Rxb6 {[%clk 0:00:05]} 57... Kxb6 {[%clk 0:00:02.3]} 58. Kf4
{[%clk 0:00:05.7]} 58... Kc6 {[%clk 0:00:03.2]} 59. Kxf5 {[%clk 0:00:06.6]}
59... Kd7 {[%clk 0:00:03.9]} 60. Kf6 {[%clk 0:00:07]} 60... Ke8 {[%clk
0:00:04.8]} 61. Kg7 {[%clk 0:00:07.6]} 61... Ke7 {[%clk 0:00:05.4]} 62. g4
{[%clk 0:00:08.5]} 62... Ke6 {[%clk 0:00:05.8]} 63. g5 {[%clk 0:00:09.4]} 63...
Ke7 {[%clk 0:00:05.6]} 64. g6 {[%clk 0:00:10.3]} 64... Ke6 {[%clk 0:00:05.9]}
65. Kh7 {[%clk 0:00:11.2]} 65... Kf6 {[%clk 0:00:05.6]} 66. g7 {[%clk
0:00:12.1]} 66... Kf5 {[%clk 0:00:05.8]} 67. g8=Q {[%clk 0:00:13]} 67... Ke4
{[%clk 0:00:06.5]} 68. Qg6+ {[%clk 0:00:13.9]} 68... Kd4 {[%clk 0:00:07.3]} 69.
Kg7 {[%clk 0:00:14.8]} 69... Kc5 {[%clk 0:00:08]} 70. Qf6 {[%clk 0:00:15.7]}
70... Kb5 {[%clk 0:00:07.8]} 71. Kg6 {[%clk 0:00:16.6]} 71... Kb4 {[%clk
0:00:07.5]} 72. Qf5 {[%clk 0:00:17.5]} 72... Kc4 {[%clk 0:00:08.1]} 73. Kf6
{[%clk 0:00:18.4]} 73... Kb4 {[%clk 0:00:08.6]} 74. Qe5 {[%clk 0:00:19.3]} 74...
Kb3 {[%clk 0:00:09.3]} 75. Ke6 {[%clk 0:00:20.2]} 75... Kc2 {[%clk 0:00:09.4]}
76. Qd5 {[%clk 0:00:21.1]} 76... Kc3 {[%clk 0:00:09.5]} 77. Ke5 {[%clk 0:00:22]}
77... Kc2 {[%clk 0:00:09.8]} 78. Qd4 {[%clk 0:00:22.9]} 78... Kc1 {[%clk
0:00:10.2]} 79. Kd5 {[%clk 0:00:23.8]} 79... Kb1 {[%clk 0:00:10.8]} 80. Qc4
{[%clk 0:00:24.7]} 80... Kb2 {[%clk 0:00:10.7]} 81. Kd4 {[%clk 0:00:25.6]} 81...
Kb1 {[%clk 0:00:10.9]} 82. Qc3 {[%clk 0:00:26.5]} 82... Ka2 {[%clk 0:00:11.1]}
83. Kc4 {[%clk 0:00:27.4]} 83... Kb1 {[%clk 0:00:11.7]} 84. Qd2 {[%clk
0:00:28.3]} 84... Ka1 {[%clk 0:00:12]} 85. Kb3 {[%clk 0:00:29.2]} 85... Kb1
{[%clk 0:00:12.7]} 86. Qd1# {[%clk 0:00:30.1]} 1-0

[Event "Early-Titled-Tuesday-Blitz-August-29-2023"]
[Site "Chess.com"]
[Date "2023.08.29"]
[Round "10"]
[White "sergoy"]
[Black "GMG"]
[Result "1-0"]
[WhiteElo "2954"]
[BlackElo "2742"]
[TimeControl "180+1"]
[EndTime "9:54:33 PDT"]
[Termination "sergoy won on time"]

1. d4 {[%clk 0:03:00.9]} 1... d5 {[%clk 0:02:59.1]} 2. c4 {[%clk 0:03:01.4]}
2... e6 {[%clk 0:02:59.6]} 3. Nf3 {[%clk 0:03:02]} 3... a6 {[%clk 0:03:00.2]} 4.
cxd5 {[%clk 0:03:01.9]} 4... exd5 {[%clk 0:03:01.1]} 5. Nc3 {[%clk 0:03:02.6]}
5... c6 {[%clk 0:03:00.2]} 6. Bg5 {[%clk 0:03:00.4]} 6... Be7 {[%clk 0:03:00]}
7. Bxe7 {[%clk 0:03:00.6]} 7... Qxe7 {[%clk 0:03:00.1]} 8. e3 {[%clk 0:03:00.8]}
8... Bf5 {[%clk 0:02:59.5]} 9. Be2 {[%clk 0:02:59.9]} 9... Nf6 {[%clk
0:02:56.8]} 10. O-O {[%clk 0:03:00]} 10... O-O {[%clk 0:02:55.2]} 11. a3 {[%clk
0:03:00]} 11... a5 {[%clk 0:02:55]} 12. Ne5 {[%clk 0:02:54.1]} 12... Nbd7 {[%clk
0:02:54.1]} 13. Nxd7 {[%clk 0:02:54.5]} 13... Nxd7 {[%clk 0:02:47.7]} 14. Rc1
{[%clk 0:02:54.7]} 14... Nb6 {[%clk 0:02:42.3]} 15. Qb3 {[%clk 0:02:50.9]} 15...
Nc8 {[%clk 0:02:42.4]} 16. Na4 {[%clk 0:02:49.1]} 16... Nd6 {[%clk 0:02:34.9]}
17. Nc5 {[%clk 0:02:48.7]} 17... g6 {[%clk 0:02:27.5]} 18. Qb6 {[%clk
0:02:46.9]} 18... h5 {[%clk 0:02:10.7]} 19. Qb3 {[%clk 0:02:10.1]} 19... h4
{[%clk 0:02:04.3]} 20. h3 {[%clk 0:02:10.4]} 20... Kg7 {[%clk 0:02:01.3]} 21.
Qd1 {[%clk 0:02:09.5]} 21... g5 {[%clk 0:01:58.8]} 22. Bd3 {[%clk 0:02:07.7]}
22... Bxd3 {[%clk 0:01:43.3]} 23. Nxd3 {[%clk 0:02:08.6]} 23... f6 {[%clk
0:01:38.1]} 24. b3 {[%clk 0:02:00.7]} 24... a4 {[%clk 0:01:36.1]} 25. b4 {[%clk
0:01:54.2]} 25... Nc4 {[%clk 0:01:34.4]} 26. Rc3 {[%clk 0:01:54.7]} 26... b5
{[%clk 0:01:29.3]} 27. Nc5 {[%clk 0:01:54.4]} 27... Rae8 {[%clk 0:01:27.9]} 28.
Kh1 {[%clk 0:01:30.7]} 28... Qf7 {[%clk 0:01:18.7]} 29. Qc2 {[%clk 0:01:18]}
29... Qg6 {[%clk 0:01:14]} 30. Nd3 {[%clk 0:01:09.1]} 30... Rh8 {[%clk
0:00:56.8]} 31. Qe2 {[%clk 0:00:55.4]} 31... Qe4 {[%clk 0:00:54.7]} 32. Re1
{[%clk 0:00:49.1]} 32... Re7 {[%clk 0:00:52.1]} 33. Nc5 {[%clk 0:00:47.3]} 33...
Qf5 {[%clk 0:00:48.8]} 34. f3 {[%clk 0:00:32.8]} 34... Rhe8 {[%clk 0:00:46.6]}
35. e4 {[%clk 0:00:33.3]} 35... Qf4 {[%clk 0:00:44.2]} 36. Rd3 {[%clk
0:00:33.8]} 36... Kf7 {[%clk 0:00:26.8]} 37. Qc2 {[%clk 0:00:30.1]} 37... Qg3
{[%clk 0:00:22.9]} 38. Rdd1 {[%clk 0:00:28.7]} 38... Kg7 {[%clk 0:00:21.7]} 39.
Re2 {[%clk 0:00:25.6]} 39... Qf4 {[%clk 0:00:20.3]} 40. Rde1 {[%clk 0:00:25.2]}
40... Qg3 {[%clk 0:00:13.2]} 41. Qd3 {[%clk 0:00:23.3]} 41... dxe4 {[%clk
0:00:07.5]} 42. Nxe4 {[%clk 0:00:24.2]} 42... Qf4 {[%clk 0:00:06.8]} 43. d5
{[%clk 0:00:18.4]} 43... cxd5 {[%clk 0:00:03.2]} 44. Qxd5 {[%clk 0:00:19.3]}
44... f5 {[%clk 0:00:03.7]} 45. Nc3 {[%clk 0:00:09.8]} 45... Rxe2 {[%clk
0:00:03.5]} 46. Rxe2 {[%clk 0:00:10.4]} 46... Qc1+ {[%clk 0:00:04.1]} 47. Kh2
{[%clk 0:00:10.2]} 47... Qf4+ {[%clk 0:00:04.3]} 48. Kh1 {[%clk 0:00:10.8]}
48... Qc1+ {[%clk 0:00:04.6]} 49. Kh2 {[%clk 0:00:11.3]} 49... Qf4+ {[%clk
0:00:04.7]} 50. Kg1 {[%clk 0:00:09.1]} 50... Rxe2 {[%clk 0:00:04.8]} 51. Nxe2
{[%clk 0:00:09.2]} 51... Qe3+ {[%clk 0:00:05.4]} 52. Kf1 {[%clk 0:00:09.5]}
52... Nd2+ {[%clk 0:00:05.6]} 53. Ke1 {[%clk 0:00:10.1]} 53... Nc4 {[%clk
0:00:05.6]} 54. Qd7+ {[%clk 0:00:10.1]} 54... Kf6 {[%clk 0:00:05.6]} 55. Qc6+
{[%clk 0:00:10.2]} 55... Ke7 {[%clk 0:00:06]} 56. Qxb5 {[%clk 0:00:10]} 56...
Qd2+ {[%clk 0:00:05.3]} 57. Kf2 {[%clk 0:00:10.2]} 57... Qe3+ {[%clk 0:00:04]}
58. Kf1 {[%clk 0:00:10.7]} 58... Nd2+ {[%clk 0:00:04.2]} 59. Ke1 {[%clk
0:00:11.2]} 59... Nb1 {[%clk 0:00:02.1]} 60. Qb7+ {[%clk 0:00:11.2]} 60... Kd6
{[%clk 0:00:02.1]} 61. Qb8+ {[%clk 0:00:11.4]} 61... Kd5 {[%clk 0:00:02.2]} 62.
Qb7+ {[%clk 0:00:11.5]} 62... Kc4 {[%clk 0:00:02.4]} 63. Qc6+ {[%clk 0:00:11.7]}
63... Kb3 {[%clk 0:00:02.7]} 64. b5 {[%clk 0:00:12.2]} 64... Nxa3 {[%clk
0:00:01]} 65. b6 {[%clk 0:00:12.2]} 1-0